bitfinex/quotes_ETHUSD_20240821
["timestamp","ask_amount","ask_price","bid_price","bid_amount"]
[1724235755485,2.3866,2587.4,2586.7,2.82079]
[1724235758723,6.25149,2587.4,2586.7,0.47289]
[1724235759018,6.25149,2587.4,2586.6,2.381]
[1724235761998,2.3866,2587.4,2586.6,2.381]
[1724235763513,2.3866,2587.4,2586.7,0.20678376]
[1724235763713,2.3866,2587.4,2586.8,1.681]
[1724235763935,2.3866,2587.4,2586.8,1.88776895]
[1724235765437,2.3866,2587.4,2586.9,0.7]
[1724235766142,2.3866,2587.4,2587.0,0.2067232]
[1724235770455,7.34,2587.8,2587.0,1.8877232]
[1724235770658,5.3844,2587.7,2587.0,4.3553232]
[1724235772342,9.24884,2587.7,2587.0,4.3553232]
[1724235774649,3.8646,2587.6,2587.0,4.3553232]
[1724235774865,3.8646,2587.6,2587.0,4.88673321]
[1724235776263,9.24883,2587.7,2587.0,4.88673321]
[1724235777449,3.8646,2587.6,2587.0,4.88673321]
[1724235780185,6.24884,2587.7,2587.0,4.88673321]
[1724235781851,2.3844,2587.7,2587.0,4.88673321]
[1724235782077,2.3844,2587.7,2587.1,1.30267332]
[1724235782447,2.3844,2587.7,2587.2,0.20640336]
[1724235783257,2.3844,2587.7,2587.0,4.68001001]
[1724235783857,2.3844,2587.7,2587.1,0.20641817]
[1724235784287,6.24884,2587.7,2587.1,0.20641817]
[1724235784474,6.24884,2587.7,2587.1,0.76506099]
[1724235792605,6.24884,2587.7,2587.1,0.20641817]
[1724235796388,3.86429,2587.8,2587.1,0.20641817]
[1724235798499,3.86446,2587.7,2587.1,0.20641817]
[1724235799178,5.54529,2587.8,2587.1,0.20641817]
[1724235799384,0.786199,2587.7,2587.1,0.20641817]
[1724235803402,2.3167,2587.9,2587.2,4.8486]
[1724235803717,15.88508,2588.0,2587.2,5.05498723]
[1724235804384,19.74914,2588.0,2587.2,5.05498723]
[1724235804587,15.88506,2588.0,2587.2,5.05498723]
[1724235804894,15.88506,2588.0,2587.3,2.4385]
[1724235805107,1.681,2587.8,2587.3,2.4385]
[1724235805294,3.86414,2587.9,2587.4,0.20635762]
[1724235805518,16.74913,2588.0,2587.4,0.20635762]
[1724235805880,16.74913,2588.0,2587.3,2.4385]
[1724235806220,3.86414,2587.9,2587.3,2.4385]
[1724235806513,3.86414,2587.9,2587.4,0.20633345]
[1724235806831,3.86414,2587.9,2587.3,2.4385]
[1724235807034,3.9547738,2587.9,2587.3,2.4385]
[1724235807222,3.9547738,2587.9,2587.4,0.20633345]
[1724235807407,3.9547738,2587.9,2587.3,2.4385]
[1724235807603,3.9547738,2587.9,2587.5,0.20631864]
[1724235807813,3.9547738,2587.9,2587.3,2.4385]
[1724235808019,3.9547738,2587.9,2587.6,0.20630384]
[1724235808321,3.9547738,2587.9,2587.3,2.4385]
[1724235808627,3.9547738,2587.9,2587.4,0.20633345]
[1724235809135,3.9547738,2587.9,2587.3,2.75235]
[1724235809499,0.0906338,2587.9,2587.4,0.20633345]
[1724235814561,0.0906338,2587.9,2587.5,2.4403]
[1724235814767,0.0906338,2587.9,2587.5,2.64661864]
[1724235821279,0.0906338,2587.9,2587.5,2.64532946]
[1724235825632,3.9547838,2587.9,2587.5,2.64532946]
[1724235825831,2.02443618,2587.9,2587.5,2.43901082]
[1724235826071,0.0906338,2587.9,2587.6,0.20623127]
[1724235826373,0.0906338,2587.9,2587.5,2.43901082]
[1724235826666,0.0906338,2587.9,2587.7,0.20621647]
[1724235826886,0.0906338,2587.9,2587.6,0.20623127]
[1724235827078,0.0906338,2587.9,2587.5,2.43901082]
[1724235827283,0.0906338,2587.9,2587.5,2.6829119]
[1724235829592,0.0906338,2587.9,2587.6,0.20623127]
[1724235832731,0.0906338,2587.9,2587.7,2.3322]
[1724235833226,0.0906338,2587.9,2587.8,0.20580674]
[1724235837663,0.0906338,2587.9,2587.6,1.681]
[1724235837864,0.0906338,2587.9,2587.8,0.20563752]
[1724235838061,0.0906338,2587.9,2587.7,0.70864243]
[1724235838263,0.0906338,2587.9,2587.8,0.20563752]
[1724235838464,2.4191338,2587.9,2587.8,0.20563752]
[1724235838884,2.4191338,2587.9,2587.5,0.7]
[1724235839092,2.4191338,2587.9,2587.5,1.17365]
[1724235839302,2.4191338,2587.9,2587.6,0.20566712]
[1724235839473,0.0906338,2587.9,2587.6,0.20566712]
[1724235840773,0.0906338,2587.9,2587.7,4.1429]
[1724235840999,0.0906338,2587.9,2587.7,4.34839114]
[1724235841168,0.0906338,2587.9,2587.8,0.43483911]
[1724235841503,0.0906338,2587.9,2587.8,0.64031545]
[1724235842605,0.0906338,2587.9,2587.8,0.20547634]
[1724235842991,0.0906338,2587.9,2587.5,5.15465]
[1724235843322,0.0906338,2587.9,2587.6,0.20550594]
[1724235862259,5.7529338,2588.3,2587.6,0.20550594]
[1724235865190,2.3016,2588.2,2587.6,0.20550594]
[1724235868366,2.3016,2588.2,2587.6,0.74152153]
[1724235874227,6.24619,2588.4,2587.9,1.681]
[1724235874601,6.24619,2588.4,2587.7,3.987]
[1724235874941,6.24619,2588.4,2587.8,0.20259037]
[1724235875235,6.2459,2588.6,2588.0,2.306]
[1724235875440,7.72629,2588.6,2588.1,2.0797]
[1724235875731,3.86325,2588.5,2588.1,1.88354596]
[1724235875934,3.8631,2588.6,2588.1,1.88354596]
[1724235876304,3.8631,2588.6,2588.1,0.20254596]
[1724235877025,2.3359,2588.5,2588.1,0.20254596]
[1724235884261,3.86287,2588.8,2588.2,2.2639]
[1724235884551,2.4592,2588.6,2588.3,0.20219412]
[1724235884916,2.4592,2588.6,2588.0,2.2639]
[1724235885170,2.4592,2588.6,2588.1,0.20203843]
[1724235885360,3.2981357,2588.6,2588.1,0.20203843]
[1724235886212,2.4592,2588.5,2588.1,0.20203843]
[1724235886417,1.681,2588.4,2588.1,0.20203843]
[1724235886651,2.4592,2588.5,2587.8,1.681]
[1724235886827,2.4592,2588.5,2588.2,0.20203169]
[1724235887150,2.99574227,2588.5,2588.3,0.20201689]
[1724235887555,2.99574227,2588.5,2587.8,4.631]
[1724235887852,2.4592,2588.5,2587.8,4.631]
[1724235888055,2.4592,2588.5,2587.9,0.20207609]
[1724235888560,2.4592,2588.5,2588.0,2.4225]
[1724235888865,2.4592,2588.5,2588.0,2.62456129]
[1724235893342,2.4592,2588.5,2588.0,0.20206129]
[1724235893584,2.99574227,2588.5,2588.0,0.20206129]
[1724235893787,2.99574227,2588.5,2587.8,4.0149]
[1724235893950,2.4592,2588.5,2588.1,0.20207872]
[1724235894288,2.4592,2588.5,2587.8,4.0149]
[1724235894685,2.4592,2588.5,2587.9,0.20210832]
[1724235896052,2.4592,2588.5,2588.0,1.681]
[1724235896259,5.7529338,2588.9,2588.3,2.2782]
[1724235896456,5.7529338,2588.9,2588.4,1.88304238]
[1724235896856,2.4816,2589.0,2588.4,1.681]
[1724235897062,2.4816,2589.0,2588.5,0.20201148]
[1724235897999,10.4339338,2589.2,2588.5,0.20201148]
[1724235898156,5.7529338,2589.2,2588.6,4.6404]
[1724235898358,5.7529338,2589.2,2588.6,5.12464115]
[1724235898840,5.7529338,2589.2,2588.7,0.20198189]
[1724235901349,7.79809,2588.8,2588.7,0.20198189]
[1724235901833,7.79809,2588.8,2588.0,0.7]
[1724235901978,3.86275,2588.9,2588.1,2.4188]
[1724235902179,3.86275,2588.9,2588.2,1.681]
[1724235902515,3.86275,2588.9,2588.3,0.19720533]
[1724235902877,5.54349,2589.0,2588.3,0.19720533]
[1724235903082,5.54349,2589.0,2588.4,2.3817]
[1724235903420,7.58479738,2589.0,2588.4,2.3817]
[1724235903602,3.86265,2588.9,2588.4,2.3817]
[1724235904581,7.72538,2588.9,2588.4,2.3817]
[1724235904786,7.72538,2588.9,2588.2,4.0314]
[1724235904982,3.86265,2588.9,2588.2,4.0314]
[1724235905208,5.53281874,2588.9,2588.3,0.19118207]
[1724235905606,5.53281874,2588.9,2588.2,4.0314]
[1724235906012,5.53281874,2588.9,2588.3,0.19118207]
[1724235906384,5.53281874,2588.9,2588.2,4.0314]
[1724235906584,3.8625,2589.0,2588.4,1.681]
[1724235907211,3.86235,2589.1,2588.5,2.3339]
[1724235907808,3.86235,2589.1,2588.6,0.19113768]
[1724235908122,3.86235,2589.1,2588.5,2.3339]
[1724235908326,11.2961738,2589.2,2588.6,0.59262768]
[1724235908530,11.2961738,2589.2,2588.5,2.3339]
[1724235908764,11.2961738,2589.2,2588.6,0.19113768]
[1724235909261,11.2961738,2589.2,2588.5,2.3339]
[1724235909624,11.2961738,2589.2,2588.6,0.19113768]
[1724235910053,11.2961738,2589.2,2588.5,2.3339]
[1724235910253,11.2961738,2589.2,2588.6,0.40149]
[1724235910453,11.2961738,2589.2,2588.6,0.59262768]
[1724235910673,11.2961738,2589.2,2588.6,0.40149]
[1724235911864,9.6151738,2589.2,2588.7,2.3269]
[1724235912225,3.86234,2589.1,2588.7,2.3269]
[1724235912635,7.72476,2589.1,2588.7,2.3269]
[1724235913058,7.72476,2589.1,2588.3,1.10314]
[1724235913059,3.86266,2588.9,2588.5,2.3269]
[1724235913267,3.8628,2588.8,2588.3,3.43004]
[1724235913475,3.8628,2588.8,2588.6,0.19113768]
[1724235913639,3.8628,2588.8,2588.3,3.0269]
[1724235913838,3.8628,2588.8,2588.7,0.19112289]
[1724235914238,3.8628,2588.8,2588.3,3.0269]
[1724235914447,3.8628,2588.8,2588.7,0.19112289]
[1724235914647,3.8628,2588.8,2588.3,3.0269]
[1724235915175,3.8628,2588.8,2588.4,0.19116727]
[1724235916279,3.86265,2588.9,2588.4,0.19116727]
[1724235916477,3.86265,2588.9,2588.4,0.681074]
[1724235917434,3.86265,2588.9,2588.4,0.19116727]
[1724235918490,3.86303,2588.7,2588.4,0.19116727]
[1724235918785,3.86324,2588.5,2588.4,0.19116727]
[1724235919249,6.14268,2588.7,2588.0,1.681]
[1724235919455,3.8631,2588.6,2588.4,0.19087825]
[1724235919672,3.8631,2588.6,2588.1,2.3673]
[1724235919842,3.8631,2588.6,2588.5,0.19086345]
[1724235920053,3.8631,2588.6,2588.1,2.3673]
[1724235920276,3.8631,2588.6,2588.5,0.19086345]
[1724235920460,3.8628,2588.8,2588.2,1.681]
[1724235920987,3.86264,2588.9,2588.3,0.19089304]
[1724235921141,3.86264,2588.9,2588.4,2.3366]
[1724235921475,3.86251,2589.0,2588.4,2.3366]
[1724235921644,3.86251,2589.0,2588.4,4.0176]
[1724235922257,9.20749,2589.2,2588.4,4.0176]
[1724235922453,3.86235,2589.1,2588.4,4.0176]
[1724235922742,3.86235,2589.1,2588.6,2.3486]
[1724235922942,3.86235,2589.1,2588.7,0.19083387]
[1724235923151,7.72477,2589.1,2588.6,2.3486]
[1724235923353,3.86235,2589.1,2588.7,0.19083387]
[1724235923545,7.72478,2589.1,2588.6,2.3486]
[1724235923861,7.72478,2589.1,2588.7,0.19083387]
[1724235924266,3.86235,2589.1,2588.6,2.3486]
[1724235924446,3.86235,2589.1,2588.6,2.798736]
[1724235924647,3.86235,2589.1,2588.7,0.19083387]
[1724235925043,7.7248,2589.1,2588.6,2.798736]
[1724235925275,3.86235,2589.1,2588.6,2.3486]
[1724235925476,3.86235,2589.1,2588.7,0.19083387]
[1724235925684,7.7248,2589.1,2588.7,0.19083387]
[1724235925847,7.7248,2589.1,2588.6,2.3486]
[1724235926244,3.86235,2589.1,2588.7,0.19083387]
[1724235926467,7.72481,2589.1,2588.7,0.19083387]
[1724235926843,3.86252,2589.0,2588.6,2.3486]
[1724235927189,3.86265,2588.9,2588.4,2.4322]
[1724235927388,3.86301,2588.7,2588.2,2.4322]
[1724235927591,3.86301,2588.7,2587.9,0.7]
[1724235927592,3.86295,2588.7,2587.9,0.7]
[1724235927885,3.86295,2588.7,2588.0,2.4322]
[1724235928086,3.86295,2588.7,2588.1,0.31322]
[1724235928596,3.86295,2588.7,2588.2,0.19090784]
[1724235928788,5.54393,2588.8,2588.2,0.19090784]
[1724235929590,3.86265,2588.9,2588.3,4.0106]
[1724235929764,3.86265,2588.9,2588.3,4.46207278]
[1724235930162,3.86265,2588.9,2588.4,0.19097458]
[1724235930863,7.72538,2588.9,2588.4,0.19097458]
[1724235931051,3.86324,2588.5,2588.4,0.19097458]
[1724235931252,0.627384,2588.5,2588.0,7.48]
[1724235931454,3.86319,2588.6,2588.4,0.19101472]
[1724235931690,3.86319,2588.6,2588.0,7.48]
[1724235931868,7.72638,2588.6,2588.5,0.19099993]
[1724235932062,3.86332,2588.5,2588.0,7.48]
[1724235936918,3.86332,2588.5,2587.9,2.2978]
[1724235936919,3.86339,2588.4,2587.9,2.2978]
[1724235937083,3.86386,2588.1,2587.5,3.157]
[1724235937409,1.681,2588.2,2587.5,3.157]
[1724235939011,1.681,2588.2,2587.5,4.838]
[1724235939706,6.22491,2588.3,2587.5,4.838]
[1724235941189,7.4839338,2588.4,2587.7,1.681]
[1724235941384,5.8029338,2588.4,2587.9,2.3132]
[1724235941614,5.8029338,2588.4,2587.9,3.9942]
[1724235942111,5.8029338,2588.4,2588.0,2.3132]
[1724235942926,3.86311,2588.6,2588.0,2.3132]
[1724235943081,3.86311,2588.6,2588.1,0.18523449]
[1724235944330,3.86311,2588.6,2588.1,0.60317794]
[1724235944637,3.86325,2588.5,2588.1,0.60317794]
[1724235944780,3.86325,2588.5,2588.1,0.18523449]
[1724235945920,3.86297,2588.7,2588.2,2.478]
[1724235946318,7.72601,2588.7,2588.3,0.18520489]
[1724235946582,7.72601,2588.7,2588.2,2.478]
[1724235946814,3.86311,2588.6,2588.2,2.8939]
[1724235947019,3.86311,2588.6,2588.3,0.18509281]
[1724235947391,3.86311,2588.6,2588.2,2.478]
[1724235947797,3.86311,2588.6,2588.3,0.18509281]
[1724235948221,3.86324,2588.5,2588.2,2.478]
[1724235948728,3.86324,2588.5,2588.3,0.18509281]
[1724235948923,3.86324,2588.5,2588.2,2.478]
[1724235949221,3.86324,2588.5,2588.3,0.18509281]
[1724235949632,3.86324,2588.5,2588.2,2.478]
[1724235950027,3.86324,2588.5,2588.3,0.18509281]
[1724235950323,3.86324,2588.5,2588.2,2.478]
[1724235950530,3.86324,2588.5,2588.3,0.18509281]
[1724235950732,3.86324,2588.5,2588.2,2.478]
[1724235950927,3.86324,2588.5,2588.3,0.18509281]
[1724235951109,3.86324,2588.5,2588.2,2.478]
[1724235951514,3.86324,2588.5,2588.3,0.18504478]
[1724235951828,3.86324,2588.5,2588.2,2.478]
[1724235952232,3.86324,2588.5,2588.3,0.18504478]
[1724235952629,3.86324,2588.5,2588.2,2.478]
[1724235953032,3.86324,2588.5,2588.3,0.18504478]
[1724235953347,3.86324,2588.5,2588.2,2.478]
[1724235953526,3.86324,2588.5,2588.3,0.18504478]
[1724235953726,3.86324,2588.5,2588.2,2.478]
[1724235954130,3.86324,2588.5,2588.3,0.18504478]
[1724235954467,3.86339,2588.4,2588.2,2.478]
[1724235954809,3.86339,2588.4,2588.3,0.18504478]
[1724235955110,3.86339,2588.4,2588.2,2.478]
[1724235955323,3.86339,2588.4,2588.3,0.18504478]
[1724235955620,3.86339,2588.4,2588.2,2.478]
[1724235956028,3.86339,2588.4,2588.3,0.18504478]
[1724235956240,4.804153,2588.4,2588.3,0.18504478]
[1724235956439,4.804153,2588.4,2587.9,2.4429]
[1724235956665,3.86339,2588.4,2587.9,2.4429]
[1724235956867,3.86339,2588.4,2588.0,0.18506516]
[1724235959235,3.8637,2588.2,2588.0,0.18506516]
[1724235960552,3.86339,2588.4,2588.1,0.18505836]
[1724235960773,3.86339,2588.4,2588.1,2.4286]
[1724235961411,3.8632,2588.6,2588.1,2.67146]
[1724235962871,3.86327,2588.5,2588.1,2.67146]
[1724235964178,3.86327,2588.5,2588.1,0.24286]
[1724235964471,3.86327,2588.5,2588.1,2.4785]
[1724235964671,3.86321,2588.6,2588.1,2.4785]
[1724235964991,5.54421,2588.6,2588.1,2.4785]
[1724235965890,3.8633,2588.5,2588.1,2.4785]
[1724235966073,3.8633,2588.5,2588.1,2.72635]
[1724235966984,3.8633,2588.5,2588.2,0.18233497]
[1724235969238,3.86341,2588.4,2588.2,0.18233497]
[1724235973445,3.86341,2588.4,2587.9,2.3375]
[1724235973662,3.8637,2588.2,2587.9,2.3375]
[1724235974934,3.86355,2588.3,2587.9,2.3375]
[1724235975458,3.86355,2588.3,2587.9,2.57125]
[1724235976962,3.86355,2588.3,2587.9,2.3375]
[1724235979083,3.86393,2588.1,2587.7,2.2566]
[1724235979253,3.86393,2588.1,2587.5,2.9566]
[1724235979569,5.54469,2588.2,2587.5,2.9566]
[1724235979570,3.864,2588.0,2587.5,2.9566]
[1724235979755,3.86384,2588.1,2587.6,0.76376]
[1724235982961,7.86959,2588.2,2587.6,0.76376]
[1724235984074,1.681,2588.0,2587.5,2.9566]
[1724235984440,6.18859,2588.2,2587.5,2.9566]
[1724235984831,10.05235,2588.2,2587.5,2.9566]
[1724235985526,6.18859,2588.2,2587.5,2.9566]
[1724235986653,7.72701,2588.4,2587.6,2.3443]
[1724235986852,5.54459,2588.3,2587.6,2.63996]
[1724235987244,5.54459,2588.3,2587.7,0.18279323]
[1724235988383,5.54459,2588.3,2587.7,0.70316855]
[1724235988965,3.86371,2588.2,2587.7,0.70316855]
[1724235992345,7.72747,2588.2,2587.7,0.70316855]
[1724235992654,3.86371,2588.2,2587.7,0.70316855]
[1724235994286,3.86371,2588.2,2587.7,0.18279323]
[1724235995547,3.86401,2588.0,2587.7,0.18279323]
[1724235996148,3.86401,2588.0,2587.5,0.7]
[1724235996550,5.54487,2588.1,2587.6,2.65271215]
[1724235996875,3.86387,2588.1,2587.6,2.65271215]
[1724235998556,3.86387,2588.1,2587.6,2.98798337]
[1724236006514,3.86387,2588.1,2587.6,2.65271215]
[1724236007129,7.72779,2588.1,2587.6,2.65271215]
[1724236007326,3.86387,2588.1,2587.6,2.65271215]
[1724236007689,5.54543,2587.7,2587.6,0.18291215]
[1724236007972,15.55469,2587.7,2587.6,0.18291215]
[1724236008202,3.86548,2587.0,2586.7,2.2971]
[1724236008519,3.86548,2587.0,2586.8,0.16218043]
[1724236008810,5.54648,2587.0,2586.7,2.2971]
[1724236009008,5.54648,2587.0,2586.8,0.16218043]
[1724236009228,5.54648,2587.0,2586.7,2.2971]
[1724236009774,3.86563,2586.9,2586.8,0.16218043]
[1724236009968,3.86579,2586.8,2586.4,2.3899]
[1724236010273,3.86579,2586.8,2586.5,0.16222488]
[1724236010517,3.86579,2586.8,2586.4,2.3899]
[1724236011275,1.681,2586.9,2586.4,2.3899]
[1724236011596,1.681,2587.1,2586.4,2.69889]
[1724236011921,3.86548,2587.0,2586.5,0.16222488]
[1724236012332,3.86548,2587.0,2586.4,2.3899]
[1724236013594,7.73104,2587.0,2586.4,2.3899]
[1724236014705,3.86563,2586.9,2586.4,2.3899]
[1724236015856,3.86579,2586.8,2586.4,2.3899]
[1724236018769,3.86593,2586.7,2586.4,2.3899]
[1724236018966,3.86579,2586.8,2586.4,2.3899]
[1724236019946,7.73166,2586.8,2586.4,2.3899]
[1724236020409,3.86579,2586.8,2586.4,2.3899]
[1724236020804,7.73169,2586.8,2586.4,2.3899]
[1724236021012,3.86579,2586.8,2586.4,2.3899]
[1724236023155,3.86557,2587.0,2586.4,2.86699]
[1724236023422,3.86557,2587.0,2586.5,2.43594337]
[1724236023657,3.86578,2586.8,2586.5,2.2719]
[1724236025099,5.54657,2587.0,2586.5,2.2719]
[1724236025100,3.86564,2586.9,2586.5,2.2719]
[1724236025256,3.86564,2586.9,2586.5,2.56909]
[1724236025440,3.86564,2586.9,2586.5,2.2719]
[1724236025970,3.86557,2587.0,2586.5,2.2719]
[1724236026158,7.73114,2587.0,2586.5,2.2719]
[1724236026491,3.86563,2586.9,2586.5,2.2719]
[1724236027496,3.86586,2586.8,2586.5,2.2719]
[1724236028839,5.54658,2587.0,2586.5,2.2719]
[1724236029001,3.86565,2586.9,2586.5,2.2719]
[1724236034219,3.86579,2586.8,2586.5,2.2719]
[1724236034588,3.86579,2586.8,2586.3,3.0563]
[1724236035632,1.681,2586.7,2586.3,2.3563]
[1724236035939,3.86615,2586.6,2586.3,2.3563]
[1724236036086,3.86615,2586.6,2586.2,2.3507]
[1724236036266,3.86615,2586.6,2586.4,0.16412232]
[1724236036470,3.86615,2586.6,2586.2,2.3507]
[1724236036709,1.681,2586.7,2586.5,0.16410751]
[1724236036895,6.4438124,2586.7,2586.2,2.3507]
[1724236037100,5.54694,2586.7,2586.6,0.16409269]
[1724236037418,5.54694,2586.7,2586.2,2.3507]
[1724236037784,5.54694,2586.7,2586.3,0.16413714]
[1724236038191,5.54694,2586.7,2586.2,2.3507]
[1724236038530,5.54694,2586.7,2586.3,0.16413714]
[1724236038832,5.54694,2586.7,2586.2,2.3507]
[1724236039179,5.54694,2586.7,2586.3,0.16413714]
[1724236039677,5.54694,2586.7,2586.2,2.3507]
[1724236039917,3.86594,2586.7,2586.4,0.16412232]
[1724236040159,3.86594,2586.7,2586.2,2.3507]
[1724236040624,3.86594,2586.7,2586.3,0.16413714]
[1724236040929,3.86594,2586.7,2586.2,2.3507]
[1724236041088,3.86594,2586.7,2586.4,0.16431466]
[1724236041430,3.86615,2586.6,2586.2,2.3507]
[1724236041574,3.86615,2586.6,2586.0,3.0715]
[1724236041575,3.86631,2586.5,2586.0,3.0715]
[1724236041775,3.86631,2586.5,2586.3,0.16432948]
[1724236041974,4.9258633,2586.5,2586.0,3.0715]
[1724236042175,3.86631,2586.5,2586.0,3.0715]
[1724236042375,3.86631,2586.5,2586.1,0.16435912]
[1724236043929,3.86652,2586.3,2586.1,0.16435912]
[1724236044667,3.86652,2586.3,2586.2,0.16452866]
[1724236045044,3.86652,2586.3,2585.8,2.3715]
[1724236045547,3.86652,2586.3,2585.9,0.16457313]
[1724236045755,3.86637,2586.4,2585.9,0.16457313]
[1724236045917,3.86637,2586.4,2585.8,2.3715]
[1724236046115,3.86637,2586.4,2586.0,0.1645583]
[1724236046413,3.86637,2586.4,2585.8,3.14675]
[1724236046975,3.86637,2586.4,2585.9,0.16457313]
[1724236047458,3.86637,2586.4,2585.8,3.14675]
[1724236047876,3.86637,2586.4,2586.0,0.1645583]
[1724236048083,3.86637,2586.4,2585.8,3.14675]
[1724236048382,3.86637,2586.4,2586.1,0.16454348]
[1724236048587,3.86637,2586.4,2585.8,3.14675]
[1724236048791,3.86637,2586.4,2586.2,0.16452866]
[1724236049032,3.86637,2586.4,2585.8,3.14675]
[1724236049033,5.8029338,2586.6,2585.9,1.681]
[1724236049154,5.8029338,2586.6,2586.1,2.3516]
[1724236051341,9.6690138,2586.6,2586.1,2.3516]
[1724236052661,9.6690138,2586.6,2586.2,0.16460883]
[1724236052898,3.86608,2586.6,2586.2,0.16460883]
[1724236053308,3.86593,2586.7,2586.2,0.41622971]
[1724236053510,5.8029338,2586.9,2586.3,4.1171]
[1724236053672,5.8029338,2586.9,2586.3,4.28175012]
[1724236053876,9.6686138,2586.9,2586.3,4.28175012]
[1724236054091,9.6686138,2586.9,2586.4,0.4533371]
[1724236054413,9.6686138,2586.9,2586.4,0.61796439]
[1724236056221,10.74071181,2587.1,2586.4,0.61796439]
[1724236056364,4.47155181,2587.1,2586.5,2.2933]
[1724236056716,0.60621181,2587.1,2586.6,0.7]
[1724236057016,5.8029338,2587.2,2586.7,2.2933]
[1724236057379,5.8029338,2587.2,2586.8,0.16429549]
[1724236057796,7.4839338,2587.2,2586.7,2.2933]
[1724236058113,11.3491238,2587.2,2586.8,0.16429549]
[1724236058314,11.3491238,2587.2,2586.7,2.2933]
[1724236058482,11.3491238,2587.2,2586.7,2.63855264]
[1724236058689,11.3491238,2587.2,2586.8,0.16429549]
[1724236059008,11.3491238,2587.2,2586.7,2.63855264]
[1724236059467,7.4839338,2587.2,2586.8,0.16429549]
[1724236059663,1.681,2587.2,2586.8,0.5145803]
[1724236059866,3.86506,2587.3,2586.8,0.35028481]
[1724236060066,3.86519,2587.2,2586.9,0.16428068]
[1724236061026,5.54619,2587.2,2586.9,0.16428068]
[1724236061541,5.54619,2587.2,2586.7,2.2933]
[1724236061735,5.54619,2587.2,2587.0,0.16418573]
[1724236061975,5.54619,2587.2,2586.7,2.2933]
[1724236062278,5.54619,2587.2,2587.1,0.16417092]
[1724236062476,5.54619,2587.2,2586.7,2.2933]
[1724236062766,5.54619,2587.2,2586.8,0.16421535]
[1724236063070,5.54619,2587.2,2586.7,2.63855264]
[1724236063228,5.54619,2587.2,2586.9,0.11420054]
[1724236063429,3.86519,2587.2,2586.8,0.16421535]
[1724236063740,3.86519,2587.2,2586.9,0.16253387]
[1724236063942,3.86519,2587.2,2586.7,2.2933]
[1724236064331,3.86519,2587.2,2586.8,0.16254868]
[1724236064528,3.86519,2587.2,2586.7,2.2933]
[1724236064765,3.86519,2587.2,2586.9,0.16253387]
[1724236064948,3.86519,2587.2,2586.7,2.63855264]
[1724236065135,3.86519,2587.2,2587.0,0.16251906]
[1724236065326,3.86519,2587.2,2586.7,2.63855264]
[1724236065757,3.86519,2587.2,2586.8,0.16217198]
[1724236066069,3.86519,2587.2,2586.7,2.63855264]
[1724236066257,3.86519,2587.2,2586.9,0.16215717]
[1724236066453,3.86519,2587.2,2586.8,0.16217198]
[1724236066630,3.86519,2587.2,2587.0,0.16214236]
[1724236066836,3.86547,2587.1,2586.9,0.16215717]
[1724236067143,3.86547,2587.1,2586.7,2.2933]
[1724236069784,3.86547,2587.1,2586.6,0.7]
[1724236069785,3.86548,2587.0,2586.6,0.7]
[1724236071541,3.86548,2587.0,2586.5,2.4794]
[1724236073037,1.681,2587.1,2586.5,2.4794]
[1724236073264,1.681,2587.1,2586.5,3.71344]
[1724236073463,10.15589,2587.2,2586.5,3.71344]
[1724236074142,6.29057,2587.2,2586.5,3.71344]
[1724236074551,10.15587,2587.2,2586.5,3.71344]
[1724236074747,6.29057,2587.2,2586.5,3.71344]
[1724236075647,3.86527,2587.2,2586.5,3.71344]
[1724236078693,3.86527,2587.2,2586.6,0.16252219]
[1724236079823,3.86527,2587.2,2586.7,2.286]
[1724236080220,3.86527,2587.2,2586.8,0.16249256]
[1724236080593,3.86527,2587.2,2586.7,2.286]
[1724236080922,3.86527,2587.2,2586.9,0.16247775]
[1724236081124,5.035347,2587.2,2586.8,0.16249256]
[1724236081279,5.035347,2587.2,2586.9,0.16247775]
[1724236081680,8.900637,2587.2,2586.7,2.286]
[1724236081881,8.900637,2587.2,2587.0,0.16246294]
[1724236082092,8.900637,2587.2,2586.7,2.286]
[1724236082289,5.035347,2587.2,2587.1,0.16244813]
[1724236082637,5.035347,2587.2,2586.7,2.286]
[1724236083039,5.035347,2587.2,2586.8,0.16249256]
[1724236083384,8.900607,2587.2,2586.7,2.286]
[1724236083730,5.035337,2587.2,2586.8,0.16249256]
[1724236084023,5.035337,2587.2,2586.7,2.286]
[1724236084173,5.035337,2587.2,2586.9,0.16247775]
[1724236084386,5.035337,2587.2,2586.7,2.286]
[1724236084599,5.035337,2587.2,2586.8,0.16249256]
[1724236084827,5.035337,2587.2,2586.7,2.286]
[1724236085126,0.60614855,2587.5,2587.0,1.681]
[1724236085436,0.60614855,2587.5,2586.9,2.56127775]
[1724236085437,4.47095855,2587.5,2587.1,0.16233592]
[1724236085645,3.86489,2587.4,2587.1,0.16233592]
[1724236085838,0.44710386,2587.3,2586.9,2.3988]
[1724236086025,3.86512,2587.3,2586.8,0.7]
[1724236086195,6.23822,2587.3,2587.0,0.16234272]
[1724236086404,6.23822,2587.3,2586.8,0.7]
[1724236086609,6.23822,2587.3,2587.1,0.16222373]
[1724236086811,5.043661,2587.2,2586.5,5.9759]
[1724236087043,3.86534,2587.1,2586.5,2.9759]
[1724236087230,5.043661,2587.2,2586.6,0.16229779]
[1724236092448,8.908971,2587.2,2586.6,0.16229779]
[1724236092922,5.043661,2587.2,2586.6,0.16229779]
[1724236094254,1.178411,2587.2,2586.7,2.3771]
[1724236094453,3.86504,2587.3,2586.7,2.86913978]
[1724236094623,3.86504,2587.3,2586.8,0.16228417]
[1724236095018,3.86504,2587.3,2586.7,2.3771]
[1724236095425,3.86504,2587.3,2586.8,0.16228417]
[1724236095807,3.86504,2587.3,2586.7,2.3771]
[1724236096009,3.86504,2587.3,2586.9,0.16226936]
[1724236096206,3.86504,2587.3,2586.7,2.3771]
[1724236096529,3.86504,2587.3,2586.7,2.85291]